[Event "Masterklassen-Elit 2025"]
[Site "Uppsala, Sweden"]
[Date "2025.07.04"]
[Round "7.2"]
[White "Ostlund, Joar"]
[Black "Olsson, William"]
[Result "1/2-1/2"]
[TimeControl "90 min for 40 move + 30 min with an increment of 30 sec starting move 1"]
[WhiteTitle "FM"]
[BlackTitle "IM"]
[WhiteFideId "1735020"]
[BlackFideId "1741721"]
[WhiteElo "2322"]
[BlackElo "2365"]

1. d4 {[%clk 01:24:17]} {[%emt 00:06:42]} d5 {[%clk 01:30:56]} {[%emt
00:00:04]} 2. c4 {[%clk 01:24:37]} {[%emt 00:00:11]} e6 {[%clk 01:31:22]}
{[%emt 00:00:03]} 3. Nf3 {[%clk 01:24:54]} {[%emt 00:00:13]} Nf6 {[%clk
01:31:46]} {[%emt 00:00:06]} 4. Nc3 {[%clk 01:25:11]} {[%emt 00:00:13]} c6
{[%clk 01:31:56]} {[%emt 00:00:20]} 5. Bg5 {[%clk 01:25:21]} {[%emt 00:00:19]}
h6 {[%clk 01:32:19]} {[%emt 00:00:08]} 6. Bxf6 {[%clk 01:25:42]} {[%emt
00:00:09]} Qxf6 {[%clk 01:32:46]} {[%emt 00:00:03]} 7. e3 {[%clk 01:26:05]}
{[%emt 00:00:07]} Nd7 {[%clk 01:33:11]} {[%emt 00:00:05]} 8. Bd3 {[%clk
01:26:23]} {[%emt 00:00:12]} dxc4 {[%clk 01:32:21]} {[%emt 00:01:20]} 9. Bxc4
{[%clk 01:26:46]} {[%emt 00:00:07]} g6 {[%clk 01:29:39]} {[%emt 00:03:12]} 10.
O-O {[%clk 01:24:12]} {[%emt 00:03:04]} Bg7 {[%clk 01:30:05]} {[%emt 00:00:04]}
11. Ne4 {[%clk 01:22:29]} {[%emt 00:02:13]} Qe7 {[%clk 01:30:21]} {[%emt
00:00:13]} 12. Qc2 {[%clk 01:22:50]} {[%emt 00:00:10]} O-O {[%clk 01:26:45]}
{[%emt 00:04:06]} 13. Bb3 {[%clk 01:23:12]} {[%emt 00:00:09]} Kh8 {[%clk
01:19:50]} {[%emt 00:07:24]} 14. Rad1 {[%clk 00:53:04]} {[%emt 00:30:38]} e5
{[%clk 01:10:33]} {[%emt 00:09:46]} 15. dxe5 {[%clk 00:50:39]} {[%emt
00:02:55]} Nxe5 16. Nxe5 {[%clk 00:51:04]} Bxe5 {[%clk 01:11:01]} {[%emt
00:00:16]} 17. f4 {[%clk 00:49:23]} {[%emt 00:02:11]} Bg7 {[%clk 01:11:16]}
{[%emt 00:00:15]} 18. Nd6 {[%clk 00:49:32]} {[%emt 00:00:21]} f5 {[%clk
00:53:10]} {[%emt 00:18:36]} 19. Rfe1 {[%clk 00:47:06]} {[%emt 00:02:55]} Qf6
{[%clk 00:41:40]} {[%emt 00:12:00]} 20. Re2 {[%clk 00:38:32]} {[%emt 00:09:05]}
Rb8 {[%clk 00:34:37]} {[%emt 00:07:32]} 21. Qc5 {[%clk 00:34:26]} {[%emt
00:04:36]} Be6 {[%clk 00:29:26]} {[%emt 00:05:42]} 22. Qxa7 {[%clk 00:31:52]}
{[%emt 00:03:04]} Bxb3 {[%clk 00:29:30]} {[%emt 00:00:26]} 23. axb3 {[%clk
00:32:11]} {[%emt 00:00:11]} Qe6 {[%clk 00:29:15]} {[%emt 00:00:45]} 24. Qb6
{[%clk 00:29:53]} {[%emt 00:02:48]} Kh7 {[%clk 00:28:14]} {[%emt 00:01:30]} 25.
Nc4 {[%clk 00:28:35]} {[%emt 00:01:49]} Rf7 {[%clk 00:27:05]} {[%emt 00:01:38]}
26. Red2 {[%clk 00:26:34]} {[%emt 00:02:31]} Ra8 {[%clk 00:25:26]} {[%emt
00:02:10]} 27. h3 {[%clk 00:18:55]} {[%emt 00:08:09]} Re7 {[%clk 00:21:46]}
{[%emt 00:04:10]} 28. Rd6 {[%clk 00:14:05]} {[%emt 00:05:21]} Qf7 {[%clk
00:19:53]} {[%emt 00:02:23]} 29. Qc5 {[%clk 00:13:29]} {[%emt 00:01:06]} Rae8
{[%clk 00:19:31]} {[%emt 00:00:51]} 30. Kh2 {[%clk 00:08:48]} {[%emt 00:05:11]}
b5 {[%clk 00:14:16]} {[%emt 00:05:46]} 31. Ne5 {[%clk 00:08:39]} {[%emt
00:00:39]} Bxe5 {[%clk 00:13:36]} {[%emt 00:01:11]} 32. fxe5 {[%clk 00:09:01]}
{[%emt 00:00:07]} Rxe5 {[%clk 00:14:01]} {[%emt 00:00:05]} 33. Qxc6 {[%clk
00:09:04]} {[%emt 00:00:27]} Rxe3 {[%clk 00:07:11]} {[%emt 00:07:20]} 34. Rf6
{[%clk 00:09:02]} {[%emt 00:00:31]} Qg7 {[%clk 00:07:28]} {[%emt 00:00:14]} 35.
Rdd6 {[%clk 00:09:08]} {[%emt 00:00:24]} Rg8 {[%clk 00:07:02]} {[%emt
00:00:56]} 36. Qxb5 {[%clk 00:03:15]} {[%emt 00:06:22]} Qc7 {[%clk 00:06:50]}
{[%emt 00:00:42]} 37. Qc4 {[%clk 00:02:40]} {[%emt 00:01:07]} Re7 {[%clk
00:04:59]} {[%emt 00:02:20]} 38. h4 {[%clk 00:01:40]} {[%emt 00:01:30]} h5
{[%clk 00:04:40]} {[%emt 00:00:49]} 39. Qxc7 {[%clk 00:00:37]} {[%emt
00:01:33]} Rxc7 {[%clk 00:05:08]} {[%emt 00:00:02]} 40. Kh3 {[%clk 00:00:33]}
{[%emt 00:00:34]} Rc2 {[%clk 00:04:37]} {[%emt 00:01:01]} 41. b4 {[%clk
00:29:35]} {[%emt 00:01:29]} Rxb2 {[%clk 00:34:59]} {[%emt 00:00:07]} 42. Rb6
{[%clk 00:29:57]} {[%emt 00:00:07]} Rg7 {[%clk 00:34:40]} {[%emt 00:00:49]} 43.
Rfc6 {[%clk 00:28:39]} {[%emt 00:01:48]} Rb3+ {[%clk 00:34:02]} {[%emt
00:01:08]} 44. Kh2 {[%clk 00:29:02]} {[%emt 00:00:07]} Re3 {[%clk 00:30:57]}
{[%emt 00:03:35]} 45. b5 {[%clk 00:18:56]} {[%emt 00:10:36]} Re4 {[%clk
00:30:16]} {[%emt 00:01:11]} 46. Kg3 {[%clk 00:19:06]} {[%emt 00:00:20]} Rg4+
{[%clk 00:28:44]} {[%emt 00:02:03]} 47. Kh3 {[%clk 00:19:29]} {[%emt 00:00:07]}
Re7 {[%clk 00:24:03]} {[%emt 00:05:11]} 48. Re6 {[%clk 00:17:29]} {[%emt
00:02:30]} Rxe6 {[%clk 00:23:57]} {[%emt 00:00:36]} 49. Rxe6 {[%clk 00:17:51]}
{[%emt 00:00:07]} Rb4 {[%clk 00:24:25]} {[%emt 00:00:03]} 50. b6 {[%clk
00:17:34]} {[%emt 00:00:48]} Rb3+ {[%clk 00:24:32]} {[%emt 00:00:22]} 51. Kh2
{[%clk 00:17:46]} {[%emt 00:00:17]} Kh6 {[%clk 00:23:53]} {[%emt 00:01:10]} 52.
g3 {[%clk 00:16:30]} {[%emt 00:01:45]} Kg7 {[%clk 00:20:42]} {[%emt 00:03:42]}
53. Rc6 {[%clk 00:15:25]} {[%emt 00:01:35]} Kf7 {[%clk 00:19:40]} {[%emt
00:01:32]} 54. Kg2 {[%clk 00:14:13]} {[%emt 00:01:41]} Kg7 {[%clk 00:19:57]}
{[%emt 00:00:13]} 55. Rc7+ {[%clk 00:12:12]} {[%emt 00:02:32]} Kf6 {[%clk
00:20:23]} {[%emt 00:00:04]} 56. b7 {[%clk 00:11:57]} {[%emt 00:00:45]} f4
{[%clk 00:20:48]} {[%emt 00:00:04]} 57. gxf4 {[%clk 00:10:16]} {[%emt
00:02:11]} Kf5 {[%emt 00:02:36]} 58. Rg7 1/2-1/2

[Event "Masterklassen-Elit 2025"]
[Site "Uppsala, Sweden"]
[Date "2025.07.04"]
[Round "7.3"]
[White "Thorn, Eric"]
[Black "Strom-Engdahl, Alexander"]
[Result "1/2-1/2"]
[TimeControl "90 min for 40 move + 30 min with an increment of 30 sec starting move 1"]
[WhiteTitle "FM"]
[BlackTitle "FM"]
[WhiteFideId "1710729"]
[BlackFideId "1741586"]
[WhiteElo "2357"]
[BlackElo "2320"]

1. e4 {[%clk 01:28:23]} {[%emt 00:02:36]} c5 {[%clk 01:30:04]} {[%emt
00:00:55]} 2. Nf3 {[%clk 01:26:17]} {[%emt 00:02:37]} Nc6 {[%clk 01:30:27]}
{[%emt 00:00:07]} 3. Bb5 {[%clk 01:26:39]} {[%emt 00:00:07]} Nf6 {[%clk
01:30:15]} {[%emt 00:00:43]} 4. Nc3 {[%clk 01:26:40]} {[%emt 00:00:30]} g6
{[%clk 01:30:35]} {[%emt 00:00:09]} 5. e5 {[%clk 01:27:03]} {[%emt 00:00:07]}
Ng4 {[%clk 01:30:59]} {[%emt 00:00:05]} 6. Bxc6 {[%clk 01:27:27]} {[%emt
00:00:06]} dxc6 {[%clk 01:31:16]} {[%emt 00:00:14]} 7. h3 {[%clk 01:27:50]}
{[%emt 00:00:06]} Nh6 {[%clk 01:31:40]} {[%emt 00:00:06]} 8. g4 {[%clk
01:28:10]} {[%emt 00:00:11]} Bg7 {[%clk 01:30:44]} {[%emt 00:01:25]} 9. d3
{[%clk 01:26:44]} {[%emt 00:01:55]} O-O {[%clk 01:30:30]} {[%emt 00:00:44]} 10.
Qe2 {[%clk 01:26:09]} {[%emt 00:01:06]} f6 {[%clk 01:26:22]} {[%emt 00:04:38]}
11. Bd2 {[%clk 01:24:20]} {[%emt 00:02:19]} Nf7 {[%clk 01:21:50]} {[%emt
00:05:02]} 12. e6 {[%clk 01:17:55]} {[%emt 00:06:55]} Ne5 {[%clk 01:10:22]}
{[%emt 00:11:58]} 13. Nxe5 {[%clk 01:00:04]} {[%emt 00:18:20]} fxe5 {[%clk
01:09:21]} {[%emt 00:01:31]} 14. O-O-O {[%clk 01:00:28]} {[%emt 00:00:07]} Bxe6
{[%clk 01:04:03]} {[%emt 00:05:47]} 15. h4 {[%clk 00:44:20]} {[%emt 00:16:38]}
Bd5 {[%clk 00:51:37]} {[%emt 00:12:57]} 16. Rh3 {[%clk 00:44:11]} {[%emt
00:00:39]} h6 {[%clk 00:48:34]} {[%emt 00:03:33]} 17. Ne4 {[%clk 00:37:48]}
{[%emt 00:06:53]} Qe8 {[%clk 00:31:48]} {[%emt 00:17:16]} 18. c4 {[%clk
00:27:58]} {[%emt 00:10:20]} Bxe4 {[%clk 00:30:53]} {[%emt 00:01:25]} 19. dxe4
{[%clk 00:28:23]} {[%emt 00:00:05]} Rd8 {[%clk 00:29:05]} {[%emt 00:02:18]} 20.
Ra3 {[%clk 00:27:08]} {[%emt 00:01:45]} a6 {[%clk 00:28:25]} {[%emt 00:01:10]}
21. Be3 {[%clk 00:27:09]} {[%emt 00:00:28]} Rd4 {[%clk 00:27:12]} {[%emt
00:01:44]} 22. Bxd4 {[%clk 00:24:51]} {[%emt 00:02:48]} exd4 {[%clk 00:25:46]}
{[%emt 00:01:57]} 23. Rf3 {[%clk 00:23:19]} {[%emt 00:02:01]} Be5 {[%clk
00:25:40]} {[%emt 00:00:36]} 24. h5 {[%clk 00:19:49]} {[%emt 00:04:00]} g5
{[%clk 00:23:18]} {[%emt 00:02:52]} 25. Rf5 {[%clk 00:18:40]} {[%emt 00:01:38]}
Qb8 {[%clk 00:23:41]} {[%emt 00:00:08]} 26. Rxf8+ {[%clk 00:13:28]} {[%emt
00:05:43]} Kxf8 {[%clk 00:21:47]} {[%emt 00:02:23]} 27. Kc2 {[%clk 00:11:42]}
{[%emt 00:02:16]} Ke8 {[%clk 00:20:01]} {[%emt 00:02:16]} 28. Rd3 {[%clk
00:11:26]} {[%emt 00:00:46]} b5 {[%clk 00:16:23]} {[%emt 00:04:08]} 29. Ra3
{[%clk 00:06:11]} {[%emt 00:05:44]} Qb6 {[%clk 00:14:56]} {[%emt 00:01:57]} 30.
Rf3 {[%clk 00:04:38]} {[%emt 00:02:03]} e6 {[%clk 00:15:02]} {[%emt 00:00:25]}
31. Qd3 {[%clk 00:03:48]} {[%emt 00:01:19]} a5 {[%clk 00:12:05]} {[%emt
00:03:28]} 32. a4 {[%clk 00:01:33]} {[%emt 00:02:46]} b4 {[%emt 00:01:31]}
1/2-1/2

[Event "Masterklassen-Elit 2025"]
[Site "Uppsala, Sweden"]
[Date "2025.07.04"]
[Round "7.4"]
[White "Landgren, Andreas"]
[Black "Carlsson, Ludvig"]
[Result "0-1"]
[TimeControl "90 min for 40 move + 30 min with an increment of 30 sec starting move 1"]
[WhiteTitle "FM"]
[BlackTitle "IM"]
[WhiteFideId "1704311"]
[BlackFideId "1727010"]
[WhiteElo "2261"]
[BlackElo "2379"]

1. d4 {[%clk 01:30:57]} {[%emt 00:00:02]} e6 {[%clk 01:29:55]} {[%emt
00:01:04]} 2. e4 {[%clk 01:31:06]} {[%emt 00:00:22]} d5 {[%clk 01:30:04]}
{[%emt 00:00:20]} 3. e5 {[%clk 01:31:29]} {[%emt 00:00:08]} c5 {[%clk
01:30:05]} {[%emt 00:00:29]} 4. c3 {[%clk 01:31:51]} {[%emt 00:00:09]} Nc6
{[%clk 01:29:36]} {[%emt 00:00:59]} 5. Nf3 {[%clk 01:32:13]} {[%emt 00:00:07]}
Bd7 {[%clk 01:29:49]} {[%emt 00:00:15]} 6. Be2 {[%clk 01:32:27]} {[%emt
00:00:17]} h6 {[%clk 01:29:26]} {[%emt 00:00:53]} 7. h4 {[%clk 01:24:09]}
{[%emt 00:08:49]} Qb6 {[%clk 01:17:00]} {[%emt 00:12:56]} 8. O-O {[%clk
01:23:00]} {[%emt 00:01:39]} cxd4 {[%clk 01:13:43]} {[%emt 00:03:48]} 9. cxd4
{[%clk 01:23:09]} {[%emt 00:00:21]} g5 {[%clk 01:14:01]} {[%emt 00:00:10]} 10.
hxg5 {[%clk 01:19:27]} {[%emt 00:04:13]} hxg5 {[%clk 01:14:19]} {[%emt
00:00:11]} 11. Bxg5 {[%clk 01:19:01]} {[%emt 00:00:58]} Bh6 {[%clk 01:12:57]}
{[%emt 00:01:51]} 12. Bxh6 {[%clk 00:52:18]} {[%emt 00:27:14]} Nxh6 {[%clk
01:13:16]} {[%emt 00:00:09]} 13. Nc3 {[%clk 00:52:32]} {[%emt 00:00:17]} Nf5
{[%clk 01:12:53]} {[%emt 00:00:53]} 14. Na4 {[%clk 00:48:17]} {[%emt 00:04:46]}
Qb4 {[%clk 01:10:11]} {[%emt 00:03:11]} 15. a3 {[%clk 00:46:56]} {[%emt
00:01:51]} Qf8 {[%clk 01:09:44]} {[%emt 00:00:57]} 16. Re1 {[%clk 00:28:33]}
{[%emt 00:18:53]} Qh6 {[%clk 01:03:06]} {[%emt 00:07:07]} 17. Kf1 {[%clk
00:28:52]} {[%emt 00:00:13]} Qf4 {[%clk 01:02:48]} {[%emt 00:00:47]} 18. Kg1
{[%clk 00:22:49]} {[%emt 00:06:33]} Ng3 {[%clk 01:02:49]} {[%emt 00:00:29]} 19.
fxg3 {[%clk 00:21:01]} {[%emt 00:02:18]} Qe3+ {[%clk 01:03:13]} {[%emt
00:00:06]} 20. Kf1 {[%clk 00:21:29]} {[%emt 00:00:03]} Rh1+ {[%clk 01:03:38]}
{[%emt 00:00:04]} 21. Ng1 {[%clk 00:21:56]} {[%emt 00:00:03]} Rxg1# {[%emt
00:00:11]} 0-1

[Event "Masterklassen-Elit 2025"]
[Site "Uppsala, Sweden"]
[Date "2025.07.04"]
[Round "7.5"]
[White "Andersson, Tommy"]
[Black "Lindberg, Bengt"]
[Result "1/2-1/2"]
[TimeControl "90 min for 40 move + 30 min with an increment of 30 sec starting move 1"]
[WhiteTitle "IM"]
[BlackTitle "IM"]
[WhiteFideId "1703803"]
[BlackFideId "1700359"]
[WhiteElo "2348"]
[BlackElo "2334"]

1. Nf3 {[%clk 01:30:55]} {[%emt 00:00:03]} Nf6 {[%clk 01:30:36]} {[%emt
00:00:24]} 2. b3 {[%clk 01:31:17]} {[%emt 00:00:09]} g6 {[%clk 01:28:34]}
{[%emt 00:02:32]} 3. Bb2 {[%clk 01:30:49]} {[%emt 00:00:57]} Bg7 {[%clk
01:26:37]} {[%emt 00:02:27]} 4. c4 {[%clk 01:24:33]} {[%emt 00:06:47]} c5
{[%clk 01:25:10]} {[%emt 00:01:57]} 5. e3 {[%clk 01:24:45]} {[%emt 00:00:18]}
Nc6 {[%clk 01:24:36]} {[%emt 00:01:04]} 6. Be2 {[%clk 01:24:25]} {[%emt
00:00:49]} O-O {[%clk 01:20:06]} {[%emt 00:05:00]} 7. d4 {[%clk 01:19:08]}
{[%emt 00:05:47]} cxd4 {[%clk 01:16:45]} {[%emt 00:03:52]} 8. Nxd4 {[%clk
01:19:09]} {[%emt 00:00:27]} d6 {[%clk 01:16:14]} {[%emt 00:01:03]} 9. O-O
{[%clk 01:18:57]} {[%emt 00:00:41]} Bd7 {[%clk 01:15:28]} {[%emt 00:01:16]} 10.
Nc3 {[%clk 01:17:17]} {[%emt 00:02:10]} a6 {[%clk 01:14:46]} {[%emt 00:01:13]}
11. Qd2 {[%clk 01:13:25]} {[%emt 00:04:23]} Rb8 {[%clk 01:10:25]} {[%emt
00:04:50]} 12. Rac1 {[%clk 01:07:50]} {[%emt 00:06:05]} Qa5 {[%clk 00:57:54]}
{[%emt 00:13:00]} 13. Rfd1 {[%clk 01:07:20]} {[%emt 00:01:01]} Rfc8 {[%clk
00:56:11]} {[%emt 00:02:13]} 14. a3 {[%clk 00:59:01]} {[%emt 00:08:50]} Qd8
{[%clk 00:54:28]} {[%emt 00:02:12]} 15. Bf3 {[%clk 00:52:47]} {[%emt 00:06:44]}
Ne5 {[%clk 00:36:29]} {[%emt 00:18:29]} 16. Be2 {[%clk 00:52:54]} {[%emt
00:00:23]} Nc6 {[%clk 00:35:57]} {[%emt 00:01:02]} 17. Bf3 {[%clk 00:44:21]}
{[%emt 00:09:04]} Ne5 {[%clk 00:36:15]} {[%emt 00:00:11]} 18. Be2 {[%clk
00:44:35]} {[%emt 00:00:16]} 1/2-1/2

[Event "Masterklassen-Elit 2025"]
[Site "Uppsala, Sweden"]
[Date "2025.07.05"]
[Round "8.1"]
[White "Ljung, Harald"]
[Black "Ostlund, Joar"]
[Result "0-1"]
[TimeControl "90 min for 40 move + 30 min with an increment of 30 sec starting move 1"]
[BlackTitle "FM"]
[WhiteFideId "1738178"]
[BlackFideId "1735020"]
[WhiteElo "2194"]
[BlackElo "2322"]

1. d4 {[%clk 01:30:57]} {[%emt 00:00:02]} Nf6 {[%clk 01:30:54]} {[%emt
00:00:06]} 2. Nf3 {[%clk 01:31:22]} {[%emt 00:00:05]} e6 {[%clk 01:31:12]}
{[%emt 00:00:13]} 3. g3 {[%clk 01:30:17]} {[%emt 00:01:35]} b5 {[%clk
01:31:34]} {[%emt 00:00:07]} 4. Bg2 {[%clk 01:30:37]} {[%emt 00:00:11]} Bb7
{[%clk 01:31:58]} {[%emt 00:00:06]} 5. O-O {[%clk 01:30:49]} {[%emt 00:00:17]}
Be7 {[%clk 01:32:11]} {[%emt 00:00:17]} 6. a4 {[%clk 01:30:44]} {[%emt
00:00:36]} b4 {[%clk 01:31:59]} {[%emt 00:00:41]} 7. c4 {[%clk 01:30:34]}
{[%emt 00:00:41]} O-O {[%clk 01:25:05]} {[%emt 00:07:23]} 8. b3 {[%clk
01:27:24]} {[%emt 00:03:40]} c5 {[%clk 01:22:13]} {[%emt 00:03:23]} 9. Bb2
{[%clk 01:22:37]} {[%emt 00:05:17]} cxd4 {[%clk 01:21:02]} {[%emt 00:01:41]} 10.
Bxd4 {[%clk 01:21:14]} {[%emt 00:01:53]} Nc6 {[%clk 01:20:03]} {[%emt
00:01:28]} 11. Bb2 {[%clk 01:19:45]} {[%emt 00:01:59]} d6 {[%clk 01:15:04]}
{[%emt 00:05:29]} 12. Nbd2 {[%clk 01:18:56]} {[%emt 00:01:20]} Qc7 {[%clk
01:10:55]} {[%emt 00:04:39]} 13. Qc2 {[%clk 01:18:25]} {[%emt 00:01:01]} h6
{[%clk 01:05:07]} {[%emt 00:06:17]} 14. Rac1 {[%clk 01:15:45]} {[%emt
00:03:10]} Nd7 {[%clk 01:02:09]} {[%emt 00:03:28]} 15. Rfd1 {[%clk 01:12:16]}
{[%emt 00:04:00]} Rad8 {[%clk 01:02:05]} {[%emt 00:00:33]} 16. h4 {[%clk
01:06:09]} {[%emt 00:06:37]} f5 {[%clk 00:48:35]} {[%emt 00:14:01]} 17. e3
{[%clk 00:55:13]} {[%emt 00:11:26]} Nc5 {[%clk 00:48:12]} {[%emt 00:00:53]} 18.
Nd4 {[%clk 00:47:00]} {[%emt 00:08:43]} Ne5 {[%clk 00:46:43]} {[%emt 00:01:58]}
19. N2f3 {[%clk 00:39:51]} {[%emt 00:07:39]} Be4 {[%clk 00:45:18]} {[%emt
00:01:54]} 20. Qe2 {[%clk 00:39:06]} {[%emt 00:01:17]} Nxf3+ {[%clk 00:40:57]}
{[%emt 00:04:51]} 21. Bxf3 {[%clk 00:37:43]} {[%emt 00:01:52]} e5 {[%clk
00:40:59]} 22. Bxe4 {[%clk 00:35:57]} {[%emt 00:02:44]} fxe4 {[%clk 00:39:11]}
{[%emt 00:03:23]} 23. Nc2 a5 {[%emt 00:03:10]} 24. Na1 {[%emt 00:02:22]} Rf3
{[%clk 00:37:25]} {[%emt 00:00:02]} 25. Rd5 {[%clk 00:32:00]} {[%emt 00:01:33]}
Rdf8 {[%clk 00:36:53]} {[%emt 00:01:03]} 26. Rcd1 {[%clk 00:29:34]} {[%emt
00:02:57]} Qc8 {[%clk 00:35:35]} {[%emt 00:01:48]} 27. Rxc5 {[%clk 00:29:44]}
{[%emt 00:00:20]} Qxc5 {[%clk 00:34:06]} {[%emt 00:01:59]} 28. Nc2 {[%clk
00:29:17]} {[%emt 00:00:57]} Qc8 {[%clk 00:34:01]} {[%emt 00:00:34]} 29. Ne1
{[%clk 00:29:40]} {[%emt 00:00:07]} Rxf2 {[%clk 00:33:39]} {[%emt 00:00:52]} 30.
Qxf2 {[%clk 00:30:05]} {[%emt 00:00:05]} Rxf2 {[%clk 00:34:03]} {[%emt
00:00:06]} 31. Kxf2 {[%clk 00:30:32]} {[%emt 00:00:03]} Qf5+ {[%clk 00:34:21]}
{[%emt 00:00:12]} 32. Kg2 {[%clk 00:30:32]} {[%emt 00:00:29]} Qg4 {[%clk
00:34:43]} {[%emt 00:00:09]} 0-1

[Event "Masterklassen-Elit 2025"]
[Site "Uppsala, Sweden"]
[Date "2025.07.05"]
[Round "8.2"]
[White "Strom-Engdahl, Alexander"]
[Black "Wiedenkeller, Michael"]
[Result "0-1"]
[TimeControl "90 min for 40 move + 30 min with an increment of 30 sec starting move 1"]
[WhiteTitle "FM"]
[BlackTitle "IM"]
[WhiteFideId "1741586"]
[BlackFideId "1700146"]
[WhiteElo "2320"]
[BlackElo "2384"]

1. Nf3 {[%emt 00:01:08]} d5 {[%clk 01:29:59]} {[%emt 00:00:22]} 2. e3 {[%clk
01:30:51]} {[%emt 00:00:08]} Nf6 {[%clk 01:28:36]} {[%emt 00:01:54]} 3. c4
{[%clk 01:30:59]} {[%emt 00:00:21]} e6 {[%clk 01:27:39]} {[%emt 00:01:29]} 4.
b3 {[%clk 01:29:13]} {[%emt 00:02:14]} c5 {[%clk 01:25:59]} {[%emt 00:02:10]} 5.
Bb2 {[%clk 01:26:50]} {[%emt 00:02:53]} Nc6 {[%clk 01:26:19]} {[%emt 00:00:11]}
6. cxd5 {[%clk 01:25:54]} {[%emt 00:01:26]} exd5 {[%clk 01:26:04]} {[%emt
00:00:45]} 7. Bb5 {[%clk 01:23:43]} {[%emt 00:02:39]} Bd6 {[%clk 01:20:55]}
{[%emt 00:05:41]} 8. O-O {[%clk 01:23:40]} {[%emt 00:00:32]} O-O {[%clk
01:20:39]} {[%emt 00:00:46]} 9. h3 {[%clk 01:19:55]} {[%emt 00:04:15]} Bd7
{[%clk 01:12:02]} {[%emt 00:09:09]} 10. Re1 {[%clk 01:13:47]} {[%emt 00:06:37]}
a6 {[%clk 01:08:00]} {[%emt 00:04:33]} 11. Bxc6 {[%clk 01:09:21]} {[%emt
00:04:54]} Bxc6 {[%clk 01:05:04]} {[%emt 00:03:27]} 12. d4 {[%clk 01:09:43]}
{[%emt 00:00:07]} b6 {[%clk 01:02:15]} {[%emt 00:03:20]} 13. Nc3 {[%clk
01:08:46]} {[%emt 00:01:27]} Re8 {[%clk 00:59:23]} {[%emt 00:03:22]} 14. Rc1
{[%clk 01:07:32]} {[%emt 00:01:43]} Rc8 {[%clk 00:56:38]} {[%emt 00:03:16]} 15.
dxc5 {[%clk 00:57:35]} {[%emt 00:10:27]} bxc5 {[%clk 00:56:10]} {[%emt
00:00:58]} 16. Qd3 {[%clk 00:57:31]} {[%emt 00:00:33]} Bb7 {[%clk 00:46:54]}
{[%emt 00:09:47]} 17. Qf5 {[%clk 00:46:31]} {[%emt 00:11:29]} Qe7 {[%clk
00:35:17]} {[%emt 00:12:08]} 18. Rcd1 {[%clk 00:40:52]} {[%emt 00:06:09]} Qe6
{[%clk 00:33:46]} {[%emt 00:02:02]} 19. Qxe6 {[%clk 00:40:14]} {[%emt
00:01:07]} fxe6 {[%clk 00:33:37]} {[%emt 00:00:39]} 20. Nd2 {[%clk 00:30:40]}
{[%emt 00:10:05]} h6 {[%clk 00:28:04]} {[%emt 00:06:02]} 21. Na4 {[%clk
00:27:23]} {[%emt 00:03:47]} Bf8 {[%clk 00:26:57]} {[%emt 00:01:37]} 22. Nf3
{[%clk 00:26:55]} {[%emt 00:00:58]} Bc6 {[%clk 00:26:26]} {[%emt 00:01:01]} 23.
Nc3 {[%clk 00:26:07]} {[%emt 00:01:18]} Nd7 {[%clk 00:25:21]} {[%emt 00:01:35]}
24. e4 {[%clk 00:23:39]} {[%emt 00:02:58]} d4 {[%clk 00:24:55]} {[%emt
00:00:56]} 25. Nb1 {[%clk 00:22:25]} {[%emt 00:01:44]} e5 {[%clk 00:23:21]}
{[%emt 00:02:03]} 26. Na3 {[%clk 00:21:08]} {[%emt 00:01:48]} a5 {[%clk
00:22:04]} {[%emt 00:01:47]} 27. Nc4 {[%clk 00:19:11]} {[%emt 00:02:27]} a4
{[%clk 00:22:05]} {[%emt 00:00:29]} 28. Ba3 {[%clk 00:17:44]} {[%emt 00:01:57]}
Ra8 {[%clk 00:21:15]} {[%emt 00:01:18]} 29. Rb1 {[%clk 00:17:27]} {[%emt
00:00:48]} axb3 {[%clk 00:20:43]} {[%emt 00:01:03]} 30. axb3 {[%clk 00:17:39]}
{[%emt 00:00:18]} Kf7 {[%clk 00:19:22]} {[%emt 00:01:51]} 31. Nfd2 {[%clk
00:15:21]} {[%emt 00:02:48]} Reb8 {[%clk 00:18:55]} {[%emt 00:00:57]} 32. Rec1
{[%clk 00:14:35]} {[%emt 00:01:16]} Be7 {[%clk 00:16:36]} {[%emt 00:02:48]} 33.
f3 {[%clk 00:11:55]} {[%emt 00:03:11]} Ke6 {[%clk 00:15:59]} {[%emt 00:01:06]}
34. Ra1 {[%clk 00:10:35]} {[%emt 00:01:51]} Bb5 {[%clk 00:10:37]} {[%emt
00:05:53]} 35. Rcb1 {[%clk 00:08:07]} {[%emt 00:02:57]} Bg5 {[%clk 00:09:47]}
{[%emt 00:01:19]} 36. Kf2 {[%clk 00:07:41]} {[%emt 00:00:56]} Bxd2 {[%clk
00:09:23]} {[%emt 00:00:55]} 37. Nxd2 {[%clk 00:08:01]} {[%emt 00:00:09]} Bd3
{[%clk 00:09:41]} {[%emt 00:00:12]} 38. Rc1 {[%clk 00:06:55]} {[%emt 00:01:37]}
Ra6 {[%clk 00:06:50]} {[%emt 00:03:20]} 39. Bb2 {[%clk 00:05:06]} {[%emt
00:02:20]} Rxa1 {[%clk 00:06:07]} {[%emt 00:01:13]} 40. Bxa1 {[%clk 00:03:48]}
{[%emt 00:01:48]} Ra8 {[%clk 00:06:06]} {[%emt 00:00:31]} 41. f4 {[%clk
00:28:46]} {[%emt 00:05:32]} Ra2 {[%clk 00:31:15]} {[%emt 00:05:21]} 42. Ke1
{[%clk 00:28:54]} {[%emt 00:00:22]} Nf6 {[%clk 00:14:42]} {[%emt 00:17:03]} 43.
b4 {[%clk 00:21:11]} {[%emt 00:08:13]} c4 {[%clk 00:09:15]} {[%emt 00:05:57]}
44. fxe5 {[%clk 00:19:43]} {[%emt 00:01:57]} Nxe4 {[%clk 00:09:25]} {[%emt
00:00:21]} 45. Nxe4 {[%clk 00:18:48]} {[%emt 00:01:24]} Re2+ {[%clk 00:09:06]}
{[%emt 00:00:49]} 46. Kd1 {[%clk 00:19:16]} Rxe4 {[%clk 00:09:26]} {[%emt
00:00:12]} 47. b5 {[%clk 00:17:28]} {[%emt 00:02:19]} Kxe5 {[%clk 00:07:59]} 48.
b6 {[%clk 00:17:17]} {[%emt 00:02:38]} Kd6 {[%clk 00:08:07]} {[%emt 00:00:22]}
49. Kd2 {[%clk 00:15:51]} {[%emt 00:01:55]} Kc6 {[%clk 00:07:20]} {[%emt
00:01:18]} 50. Rg1 {[%clk 00:13:46]} {[%emt 00:02:34]} Re2+ {[%clk 00:07:18]}
{[%emt 00:00:31]} 51. Kc1 {[%clk 00:13:32]} {[%emt 00:00:45]} c3 {[%clk
00:07:21]} {[%emt 00:00:28]} 0-1